bitfinex/quotes_ETHUSD_20241119
["timestamp","ask_amount","ask_price","bid_price","bid_amount"]
[1731975226389,3.12413,3200.9,3200.5,1.5693]
[1731975226647,3.1234,3201.7,3200.5,1.5693]
[1731975226648,3.12423,3200.8,3200.5,1.5693]
[1731975227005,3.12441,3200.6,3200.0,1.5804]
[1731975227171,3.12481,3200.2,3199.6,1.5804]
[1731975227859,3.12497,3200.1,3199.6,1.5804]
[1731975228299,3.12462,3200.4,3199.6,1.5804]
[1731975228495,3.12482,3200.2,3199.6,1.5804]
[1731975228698,3.12529,3199.7,3199.1,1.5959]
[1731975229020,3.12509,3200.0,3199.1,4.72175]
[1731975229312,3.1252,3199.8,3199.1,4.72175]
[1731975229458,2.8137,3199.8,3199.1,4.72175]
[1731975230299,0.312509,3199.9,3199.1,1.5959]
[1731975230540,3.12548,3199.6,3199.1,1.5959]
[1731975231027,3.12552,3199.5,3199.1,1.5959]
[1731975231336,0.6251,3199.5,3198.5,1.939725]
[1731975231536,3.12575,3199.3,3198.5,5.066175]
[1731975231840,3.12575,3199.3,3198.5,4.72235]
[1731975232131,3.12609,3198.9,3198.5,1.5959]
[1731975232339,3.12609,3198.9,3198.1,3.12683]
[1731975232340,3.12618,3198.8,3198.1,3.12683]
[1731975232502,3.67548,3199.5,3198.0,4.78536642]
[1731975232703,0.55,3199.5,3198.0,1.65842642]
[1731975232905,0.55,3199.5,3198.0,1.5959]
[1731975232906,3.1265,3198.5,3198.0,1.5959]
[1731975233106,3.12658,3198.4,3198.0,1.5959]
[1731975233437,3.1265,3198.5,3198.0,1.5959]
[1731975234136,0.31265,3198.5,3197.6,1.5959]
[1731975234309,3.12694,3198.1,3197.3,3.12761]
[1731975234627,3.12703,3198.0,3197.3,3.12761]
[1731975234833,4.71675,3199.0,3197.2,1.5959]
[1731975235147,3.12647,3198.5,3197.7,3.1272]
[1731975235434,3.12674,3198.3,3197.5,3.12736]
[1731975235737,3.12669,3198.3,3197.5,3.12736]
[1731975235907,3.12669,3198.3,3197.6,3.12732]
[1731975236439,3.12654,3198.5,3197.3,0.15959]
[1731975236629,0.625285,3198.5,3197.8,3.12709]
[1731975237108,0.625285,3198.5,3197.6,3.12733]
[1731975237305,0.625285,3198.5,3197.9,3.12704]
[1731975237742,1.5907,3199.0,3198.0,3.18769752]
[1731975238031,4.77539,3199.4,3198.5,3.12644]
[1731975238193,3.7375324,3199.3,3198.6,3.1263]
[1731975238389,1.6498,3199.4,3198.7,3.12626]
[1731975238712,4.77501,3199.8,3198.4,4.49132648]
[1731975238899,4.77501,3199.8,3199.0,3.1259]
[1731975239104,1.6498,3199.8,3198.9,3.12601]
[1731975239303,3.12536,3199.7,3198.9,3.12601]
[1731975239508,1.6498,3199.8,3198.9,2.81391]
[1731975239710,3.12553,3199.5,3198.9,2.81391]
[1731975239921,3.12553,3199.5,3198.4,3.97164993]
[1731975239922,3.12569,3199.3,3198.4,3.97164993]
[1731975240124,3.12569,3199.3,3198.4,7.09820993]
[1731975240332,3.12569,3199.3,3198.6,3.12628]
[1731975240491,3.12569,3199.3,3198.7,3.12625]
[1731975240693,3.81332819,3199.3,3198.4,3.97164993]
[1731975240893,3.81332819,3199.3,3198.6,3.12634]
[1731975241323,3.81332819,3199.3,3198.4,7.09818993]
[1731975241534,3.81332819,3199.3,3198.7,3.12626]
[1731975241738,0.38133282,3199.2,3198.7,3.12626]
[1731975242041,4.775,3199.8,3198.5,3.12645]
[1731975242194,4.775,3199.8,3199.1,3.1258]
[1731975242392,1.6498,3199.8,3199.2,3.1257]
[1731975242740,0.227291,3199.7,3199.2,3.1257]
[1731975242894,0.227291,3199.7,3199.1,3.12578]
[1731975243242,1.6498,3199.8,3199.1,3.12578]
[1731975243541,0.62311004,3199.9,3199.1,3.12587]
[1731975243832,2.18679154,3200.3,3199.4,3.12555]
[1731975244043,0.21867915,3200.2,3199.5,3.12547]
[1731975244488,0.31245,3200.5,3199.8,3.43677]
[1731975244697,0.31245,3200.5,3199.1,3.18831811]
[1731975244698,0.62362639,3200.6,3200.2,0.3116]
[1731975244997,0.06251619,3200.5,3200.2,0.3116]
[1731975245197,0.06251619,3200.9,3200.2,0.3116]
[1731975245544,0.37492019,3200.9,3200.2,0.3116]
[1731975245834,0.06251619,3201.3,3200.3,0.3116]
[1731975246736,0.60968327,3201.1,3200.3,0.3116]
[1731975247132,0.06251619,3201.0,3200.3,0.3116]
[1731975247722,3.12373,3201.3,3200.3,0.3116]
[1731975247723,1.6568,3202.1,3200.8,0.3116]
[1731975247928,3.12392,3201.1,3200.1,0.3116]
[1731975248235,0.06251619,3201.0,3200.1,0.3116]
[1731975248443,0.06251619,3201.1,3200.1,3.43648]
[1731975249598,0.06251619,3201.1,3200.2,0.3116]
[1731975249794,1.5036,3201.2,3200.8,0.3116]
[1731975250096,1.5036,3201.2,3200.5,3.12451]
[1731975250443,1.5036,3201.2,3200.6,3.12439]
[1731975250615,1.71767318,3201.2,3200.7,0.3116]
[1731975250997,0.21407318,3201.2,3200.7,3.43583]
[1731975251244,0.63713183,3201.3,3201.0,3.43561]
[1731975251450,0.63713183,3201.3,3201.0,3.43448169]
[1731975251635,0.63713183,3201.3,3201.0,0.31047169]
[1731975252237,0.63713183,3201.3,3199.9,4.6882]
[1731975252238,3.12392,3201.1,3200.1,3.43642]
[1731975252450,3.50519981,3201.0,3200.1,3.43642]
[1731975252628,0.31864362,3201.0,3200.3,0.3116]
[1731975252966,3.12385,3201.2,3200.5,0.3116]
[1731975253252,0.63713183,3201.3,3200.5,3.4361]
[1731975253417,0.63713183,3201.3,3200.5,0.3116]
[1731975253740,0.63713183,3201.3,3200.3,0.3116]
[1731975253741,3.76086183,3201.3,3200.3,0.3116]
[1731975253952,3.76086183,3201.3,3200.3,3.43622]
[1731975254163,3.12403,3201.0,3200.3,0.3116]
[1731975254508,2.81253,3201.0,3200.2,0.3116]
[1731975254905,3.12416,3200.9,3200.0,3.43659]
[1731975255253,1.95153219,3200.8,3198.6,0.01]
[1731975255482,1.95153219,3200.8,3199.1,0.2994855]
[1731975255483,3.1251,3199.9,3199.1,0.2994855]
[1731975255740,3.1251,3199.9,3199.2,0.3116]
[1731975255944,0.06251619,3199.8,3199.1,0.3116]
[1731975256267,0.47642162,3199.9,3199.5,3.12548]
[1731975256457,1.5766,3200.1,3199.6,0.3116]
[1731975256612,1.73426,3200.1,3199.6,0.3116]
[1731975257010,3.12518,3199.9,3199.0,0.3116]
[1731975257250,1.5766,3199.7,3199.0,0.2991855]
[1731975257407,3.1255,3199.5,3198.6,0.04093868]
[1731975257606,3.1255,3199.5,3198.3,4.83056008]
[1731975257820,3.12578,3199.3,3198.5,3.12645]
[1731975258103,3.12578,3199.3,3198.6,0.3116]
[1731975258351,3.12578,3199.3,3198.3,3.12661]
[1731975258555,3.12571,3199.3,3198.3,3.12663]
[1731975258758,0.35070278,3199.2,3198.4,3.12655]
[1731975259252,3.47648278,3199.2,3198.5,0.3116]
[1731975259453,4.7019,3199.7,3198.3,0.3116]
[1731975259657,4.7019,3199.7,3199.0,0.3116]
[1731975259803,4.7019,3199.7,3199.0,3.43757]
[1731975260158,0.50206696,3199.6,3199.0,3.43757]
[1731975260362,3.12553,3199.5,3199.0,0.3116]
[1731975260525,3.12553,3199.5,3198.7,3.12624]
[1731975260526,3.12574,3199.3,3198.7,0.3116]
[1731975260710,3.12574,3199.3,3198.6,3.59791332]
[1731975260711,3.12574,3199.3,3198.6,0.3116]
[1731975260901,3.750867,3199.3,3198.6,0.3116]
[1731975261650,3.750867,3199.3,3198.4,0.3116]
[1731975261858,3.12589,3199.1,3198.4,0.3116]
[1731975262012,3.18829619,3199.2,3198.4,0.3116]
[1731975262349,0.38134232,3199.1,3198.4,0.3116]
[1731975262851,0.38134232,3199.1,3198.3,0.3116]
[1731975263055,3.50722232,3199.1,3198.5,0.3116]
[1731975263219,3.12591,3199.1,3198.5,0.3116]
[1731975263641,3.12598,3199.0,3198.5,0.3116]
[1731975263843,0.06251619,3199.3,3198.5,0.3116]
[1731975264074,3.12605,3199.0,3198.3,0.3116]
[1731975264383,3.12594,3199.1,3198.5,0.3116]
[1731975264557,3.12617,3198.9,3198.5,0.3116]
[1731975264736,3.12594,3199.1,3198.5,0.3116]
[1731975264737,1.56,3198.7,3198.5,0.3116]
[1731975265057,3.18887619,3198.6,3197.6,1.5106]
[1731975265222,3.18887619,3198.6,3197.7,0.3116]
[1731975265223,3.12676,3198.2,3197.7,0.3116]
[1731975265411,0.85002881,3198.6,3197.7,0.3116]
[1731975265768,3.12687,3198.1,3197.7,0.3116]
[1731975265912,3.12706,3197.9,3197.7,0.3116]
[1731975266262,3.12706,3197.9,3196.6,3.14823]
[1731975266263,3.12748,3197.5,3196.9,0.3116]
[1731975266434,3.12756,3197.4,3196.9,0.3116]
[1731975266756,3.12748,3197.5,3196.9,0.3116]
[1731975266960,3.12756,3197.4,3196.9,0.3116]
[1731975267423,3.12802,3197.0,3196.2,0.3116]
[1731975267630,0.06251619,3196.9,3196.2,3.44025]
[1731975267825,3.12821,3196.8,3196.2,0.3116]
[1731975268055,3.12812,3196.8,3196.2,0.3116]
[1731975268673,3.12794,3197.0,3196.2,0.3116]
[1731975268887,4.66475,3197.1,3196.4,0.3116]
[1731975269084,1.5369,3197.1,3196.4,3.784069]
[1731975269283,4.66425,3197.6,3196.8,0.3116]
[1731975269492,3.12712,3197.9,3197.2,0.3116]
[1731975269945,3.12715,3197.8,3197.2,0.3116]
[1731975270145,3.12689,3198.1,3197.2,3.43926]
[1731975270341,0.62858303,3198.4,3197.5,0.3116]
[1731975270593,3.12676,3198.2,3197.5,3.43903]
[1731975271245,3.14577,3199.3,3196.8,6.72598332]
[1731975271246,0.06251619,3198.1,3197.6,0.3116]
[1731975271494,3.12721,3197.8,3197.6,0.3116]
[1731975271846,3.18975619,3197.7,3197.6,0.3116]
[1731975272141,3.12724,3197.7,3197.6,0.3116]
[1731975272345,4.78694,3197.7,3197.1,0.3116]
[1731975272541,3.12751,3197.5,3197.1,0.3116]
[1731975272793,4.78694,3197.7,3197.1,0.3116]
[1731975272976,3.12736,3197.6,3197.1,0.3116]
[1731975273494,3.12736,3197.6,3196.9,0.3116]
[1731975273795,1.6597,3197.7,3197.1,0.3116]
[1731975273949,1.6597,3197.7,3197.1,3.43935]
[1731975274447,3.12695,3198.0,3197.3,0.3116]
[1731975274682,1.6196,3198.2,3197.6,3.43887]
[1731975274881,3.12659,3198.4,3197.8,0.3116]
[1731975275083,3.12671,3198.3,3197.8,0.3116]
[1731975275265,3.12693,3198.1,3197.8,0.3116]
[1731975275452,3.12735,3197.6,3197.0,0.3116]
[1731975275661,0.06251619,3197.9,3197.0,3.43944]
[1731975275863,3.1273,3197.7,3197.2,0.3116]
[1731975276089,3.12709,3197.9,3197.2,0.3116]
[1731975276309,3.12726,3197.7,3197.2,0.3116]
[1731975276492,3.12715,3197.8,3197.2,0.3116]
[1731975276813,3.12715,3197.8,3197.2,3.43932]
[1731975277023,4.74662,3198.0,3197.4,0.3116]
[1731975277169,3.81572526,3198.3,3197.6,0.3116]
[1731975277170,3.12679,3198.2,3197.6,0.3116]
[1731975277514,3.12679,3198.2,3197.6,3.43893]
[1731975278312,3.12679,3198.2,3197.4,3.43907]
[1731975278313,3.12696,3198.0,3197.4,3.43907]
[1731975278515,3.12696,3198.0,3197.4,0.3116]
[1731975278859,3.12696,3198.0,3197.5,0.3116]
[1731975279510,2.81546,3198.0,3197.4,2.81543]
[1731975279816,2.81546,3198.0,3197.2,3.12773]
[1731975279817,3.12708,3197.9,3197.2,3.12773]
[1731975280019,3.12723,3197.8,3197.1,3.43939]
[1731975280232,3.12695,3198.0,3197.4,0.3116]
[1731975280367,2.23585263,3198.5,3197.8,0.3116]
[1731975280368,3.12666,3198.3,3197.8,0.3116]
[1731975280675,3.12677,3198.2,3197.8,0.3116]
[1731975280878,3.12624,3198.8,3198.2,0.3116]
[1731975281092,3.12624,3198.8,3198.2,3.43833]
[1731975281318,1.5987,3198.9,3198.4,0.3116]
[1731975281319,0.06251619,3198.7,3198.4,0.3116]
[1731975281479,3.28611,3198.8,3198.4,0.3116]
[1731975282397,3.28611,3198.8,3198.2,0.3116]
[1731975282763,3.12643,3198.6,3198.2,0.3116]
[1731975282969,3.12666,3198.3,3198.2,0.3116]
[1731975283381,3.12693,3198.1,3197.6,0.3116]
[1731975284402,1.66121619,3198.1,3196.7,3.98427472]
[1731975284606,3.12716,3197.8,3197.2,0.3116]
[1731975285492,3.12697,3198.0,3197.4,0.3116]
[1731975285688,3.12705,3197.9,3197.4,0.3116]
[1731975286123,3.12715,3197.8,3197.4,0.3116]
[1731975286286,3.12726,3197.7,3197.4,0.3116]
[1731975286491,3.12734,3197.6,3197.5,0.3116]
[1731975286890,3.12715,3197.8,3197.5,0.3116]
[1731975287098,3.439985,3197.7,3197.5,0.3116]
[1731975287281,3.12734,3197.6,3197.5,0.3116]
[1731975287483,3.12734,3197.6,3196.9,0.3116]
[1731975287883,3.12734,3197.6,3196.9,3.43958]
[1731975288728,3.12734,3197.6,3197.1,0.3116]
[1731975289908,0.6567205,3197.6,3196.8,1.51]
[1731975290096,1.5987,3198.1,3196.8,1.51]
[1731975290097,3.12763,3197.3,3196.9,0.3125]
[1731975290292,3.12751,3197.5,3196.9,0.3125]
[1731975290525,3.12761,3197.4,3196.9,0.3125]
[1731975290734,3.12751,3197.5,3196.9,0.3125]
[1731975290735,3.12765,3197.3,3196.9,0.3125]
[1731975293198,3.1275,3197.5,3197.1,0.3125]
[1731975293638,3.12764,3197.3,3197.1,0.3125]
[1731975293791,3.12764,3197.3,3196.8,1.1978]
[1731975293991,3.12764,3197.3,3196.9,0.3125]
[1731975294887,0.06251619,3197.2,3196.1,0.0400236]
[1731975295232,3.12778,3197.2,3196.4,3.44094]
[1731975295439,3.12822,3196.7,3196.1,0.0400236]
[1731975295729,3.12868,3196.3,3196.1,0.0400236]
[1731975296092,0.06251619,3196.4,3196.2,0.3125]
[1731975296288,3.12861,3196.3,3196.2,0.3125]
[1731975296637,3.12871,3196.2,3196.1,0.0400236]
[1731975296845,3.97568981,3196.2,3196.1,0.0400236]
[1731975297037,3.91317362,3196.2,3196.1,0.3525236]
[1731975297335,3.97568981,3196.2,3196.1,0.3525236]
[1731975297636,3.91317362,3196.2,3196.1,0.3525236]
[1731975297793,0.62285317,3196.4,3196.1,0.3525236]
[1731975297985,3.12816,3196.8,3196.1,0.3525236]
[1731975298191,3.12816,3196.8,3196.3,0.3125]
[1731975298416,3.12796,3197.0,3196.3,0.3125]
[1731975298622,3.12822,3196.8,3196.3,0.3125]
[1731975299129,3.12796,3197.0,3196.3,3.44108]
[1731975299336,3.12796,3197.0,3196.5,0.3125]
[1731975299831,3.12776,3197.2,3196.5,0.3125]
[1731975300041,3.12789,3197.1,3196.5,0.3125]
[1731975300332,4.65046,3197.9,3197.1,0.3125]
[1731975300536,0.06251619,3198.2,3197.3,0.3125]
[1731975300741,3.12754,3197.4,3197.3,0.3125]
[1731975300887,3.440294,3197.4,3197.3,0.3125]
[1731975301091,3.12754,3197.4,3197.3,0.3125]
[1731975301534,3.12754,3197.4,3196.8,3.44056]
[1731975301734,3.12743,3197.6,3197.1,0.3125]
[1731975301985,3.12745,3197.5,3197.1,0.3125]
[1731975302297,3.12735,3197.6,3197.1,0.3125]
[1731975302492,3.12735,3197.6,3196.4,3.60618304]
[1731975302493,3.12908,3195.9,3195.6,1.5176]
[1731975302801,3.12908,3195.9,3195.4,0.005]
[1731975303137,4.74488,3196.4,3195.4,0.005]
[1731975303138,3.12928,3195.7,3195.4,0.005]
[1731975303310,0.06251619,3196.3,3195.4,0.005]
[1731975303505,1.6163,3196.4,3195.4,0.005]
[1731975303688,0.22414619,3196.3,3195.4,0.005]
[1731975303889,3.12918,3195.8,3195.4,0.005]
[1731975304410,0.16163,3196.3,3195.4,0.005]
[1731975304590,3.12927,3195.7,3195.4,0.005]
[1731975304796,3.1294,3195.5,3195.4,0.005]
[1731975305196,8.39228319,3195.5,3194.9,0.3125]
[1731975305508,3.13007,3194.9,3194.7,0.005]
[1731975305748,3.13008,3194.8,3194.7,0.005]
[1731975306473,0.06251619,3194.9,3194.7,0.005]
[1731975306648,3.13008,3194.8,3194.7,0.005]
[1731975306847,3.12996,3195.0,3194.7,0.005]
[1731975307049,3.12988,3195.1,3194.7,0.005]
[1731975307264,3.13008,3194.8,3194.7,0.005]
[1731975307467,4.70788,3194.8,3194.7,0.005]
[1731975307646,5.56042881,3194.8,3194.7,0.005]
[1731975308087,5.49791262,3194.8,3194.7,0.005]
[1731975308433,5.56042881,3194.8,3194.7,0.005]
[1731975310372,8.56042881,3194.8,3194.7,0.005]
[1731975310564,3.13112,3193.8,3193.6,0.1435689]
[1731975310769,3.13116,3193.7,3193.6,0.1435689]
[1731975312476,3.13098,3193.9,3193.6,0.1435689]
[1731975312659,3.13109,3193.8,3193.6,0.1435689]
[1731975312865,3.13087,3194.0,3193.6,0.1435689]
[1731975313176,4.77186,3193.7,3193.6,0.1435689]
[1731975313378,7.83437619,3193.7,3193.6,0.1435689]
[1731975313586,7.77186,3193.7,3193.6,0.1435689]
[1731975313788,8.863142,3193.7,3193.6,0.1435689]
[1731975314578,9.413142,3193.7,3193.6,0.1435689]
[1731975315135,8.863142,3193.7,3193.6,0.1435689]
[1731975315884,3.13116,3193.7,3193.6,0.1435689]
[1731975316786,3.13096,3193.9,3193.6,0.1435689]
[1731975317063,0.64103285,3194.0,3193.6,0.1435689]
[1731975317426,3.13078,3194.1,3193.6,0.1435689]
[1731975317569,3.13111,3193.8,3193.6,0.1435689]
[1731975317768,3.1309,3194.0,3193.6,0.1435689]
[1731975317998,0.31309,3194.0,3193.6,0.1435689]
[1731975318232,0.63802596,3194.1,3193.6,0.1435689]
[1731975318434,3.76885596,3194.1,3193.6,0.1435689]
[1731975318576,0.63802596,3194.1,3193.6,0.1435689]
[1731975318925,3.13116,3193.7,3193.6,0.1435689]
[1731975319132,3.757372,3193.7,3193.6,0.1435689]
[1731975319475,3.13165,3193.2,3193.1,0.3125]
[1731975319914,3.13177,3193.1,3192.6,0.3125]
[1731975320117,0.06251619,3193.0,3192.3,3.13248]
[1731975320426,3.13194,3193.0,3192.3,3.13248]
[1731975320623,3.13205,3192.8,3192.4,0.3125]
[1731975320827,3.13234,3192.5,3192.4,0.3125]
[1731975320976,0.06251619,3192.7,3192.0,0.3125]
[1731975320977,3.1322,3192.7,3192.0,0.3125]
[1731975321177,3.1322,3192.7,3192.0,3.44532]
[1731975321593,0.63267662,3192.7,3192.2,0.3125]
[1731975322093,3.13205,3192.8,3192.2,0.3125]
[1731975322293,3.13181,3193.1,3192.4,3.13236]
[1731975322627,0.313712,3193.7,3191.9,0.30090111]
[1731975322628,3.13138,3193.5,3192.8,0.3125]
[1731975322931,0.06251619,3193.5,3192.8,0.3125]
[1731975323130,3.13157,3193.3,3192.8,0.3125]
[1731975323620,3.13165,3193.2,3192.7,0.3125]
[1731975323833,3.13165,3193.2,3192.6,3.13223]
[1731975324118,0.62329315,3193.3,3192.7,0.3125]
[1731975324471,3.13192,3193.0,3192.8,0.3125]
[1731975324677,3.13194,3192.9,3192.8,0.3125]
[1731975324927,4.071492,3192.9,3192.8,0.3125]
[1731975325232,3.13194,3192.9,3192.8,0.3125]
[1731975326721,3.13194,3192.9,3192.4,0.3125]
[1731975327228,3.13194,3192.9,3192.4,0.61340111]
[1731975327374,3.13205,3192.8,3192.4,0.3125]
[1731975327773,3.13212,3192.8,3192.4,0.3125]
[1731975328041,0.06251619,3193.0,3192.3,0.3125]
[1731975328172,3.13217,3192.7,3192.3,0.3125]
[1731975328395,3.13237,3192.5,3192.3,0.61340111]
[1731975328687,3.13237,3192.5,3192.3,0.3125]
[1731975328888,0.313237,3192.4,3192.3,0.3125]
[1731975329093,3.13253,3192.3,3192.2,0.61340111]
[1731975329391,3.13253,3192.3,3192.2,0.3125]
[1731975330510,3.19504619,3192.3,3192.2,0.3125]
[1731975330835,3.19504619,3192.3,3191.6,0.30090111]
[1731975330836,3.13302,3191.8,3191.6,0.30090111]
[1731975331041,3.13302,3191.8,3191.4,0.30090111]
[1731975331254,3.13313,3191.7,3191.4,0.30090111]
[1731975331535,0.06251619,3192.3,3191.4,0.30255872]
[1731975331536,3.13298,3191.9,3191.4,0.30255872]
[1731975331690,3.13298,3191.9,3191.8,0.61505872]
[1731975331890,3.13286,3192.0,3191.8,0.61505872]
[1731975332196,4.22686075,3192.3,3191.9,0.61505872]
[1731975332436,3.13273,3192.1,3191.9,0.3125]
[1731975332738,0.61652613,3192.3,3192.1,0.3125]
[1731975332949,3.13246,3192.4,3192.1,1.8936]
[1731975333097,0.626472,3192.4,3192.1,1.8936]
[1731975333293,3.13207,3192.8,3192.1,5.02632]
[1731975333498,3.13207,3192.8,3192.3,0.3125]
[1731975333725,3.13187,3193.0,3192.3,0.3125]
[1731975333941,3.35230932,3193.2,3192.7,0.3125]
[1731975334150,0.6382092,3193.1,3192.7,0.3125]
[1731975334641,3.35230932,3193.2,3192.7,0.3125]
[1731975334853,1.6282,3193.7,3192.7,0.3125]
[1731975335140,3.13175,3193.1,3192.5,3.44482]
[1731975335293,3.1316,3193.3,3192.7,0.3125]
[1731975335501,3.13154,3193.4,3192.7,3.44463]
[1731975335822,3.13119,3193.7,3193.2,0.3125]
[1731975336010,1.6282,3194.1,3193.2,0.3125]
[1731975336216,3.13153,3193.4,3193.2,0.3125]
[1731975336504,3.13155,3193.3,3193.2,0.3125]
[1731975336841,3.13155,3193.3,3192.4,3.19494539]
[1731975336842,3.1317,3193.2,3192.7,0.3125]
[1731975337010,3.61748137,3194.0,3192.4,3.13234]
[1731975337011,0.06251619,3193.8,3193.1,0.3125]
[1731975337209,3.13165,3193.2,3193.1,0.3125]
[1731975338150,3.13194,3192.9,3192.8,0.3125]
[1731975338963,3.76456862,3192.9,3192.8,0.3125]
[1731975339443,3.13224,3192.7,3192.4,0.3125]
[1731975339602,3.13234,3192.5,3192.4,0.3125]
[1731975340048,3.13249,3192.4,3191.9,0.3125]
[1731975340449,3.19440619,3193.0,3191.9,0.3125]
[1731975340450,3.13271,3192.2,3191.9,0.3125]
[1731975340652,3.13225,3192.6,3191.9,0.3125]
[1731975340860,3.13235,3192.5,3191.9,3.4454]
[1731975341342,3.13235,3192.5,3191.9,0.3125]
[1731975341846,3.13245,3192.4,3191.9,0.3125]
[1731975342041,3.13235,3192.5,3191.9,0.3125]
[1731975342400,3.13235,3192.5,3191.9,1.8821]
[1731975342595,3.13216,3192.7,3191.9,2.383611]
[1731975342898,3.13195,3192.9,3192.2,0.3125]
[1731975343229,3.1322,3192.7,3192.2,0.3125]
[1731975343635,0.477242,3193.1,3192.2,0.3125]
[1731975343834,3.13224,3192.7,3192.1,0.3125]
[1731975344052,3.13224,3192.7,3192.1,4.28398693]
[1731975344256,3.13202,3192.9,3192.3,0.3125]
[1731975344454,3.13206,3192.8,3192.3,0.3125]
[1731975344721,3.13243,3192.4,3192.3,0.3125]
[1731975344959,3.13224,3192.6,3192.3,0.3125]
[1731975345153,3.13206,3192.8,3192.3,0.3125]
[1731975345322,3.13206,3192.8,3192.1,3.13272]
[1731975345323,3.13206,3192.8,3192.2,0.3125]
[1731975345532,0.70013886,3192.9,3192.2,0.3125]
[1731975345866,3.13253,3192.3,3192.2,0.3125]
[1731975346470,3.13253,3192.3,3191.9,0.3125]
[1731975346634,3.13283,3192.0,3191.9,0.3125]
[1731975347235,3.13272,3192.2,3191.6,0.3125]
[1731975348071,3.13231,3192.6,3192.0,0.3125]
[1731975348274,3.13206,3192.8,3192.0,3.44532]
[1731975348484,3.13215,3192.7,3192.0,3.44532]
[1731975348767,3.13181,3193.1,3192.5,0.3125]
[1731975348968,3.13187,3193.0,3192.5,0.3125]
[1731975349156,3.13196,3192.9,3192.5,0.3125]
[1731975349363,3.13215,3192.7,3192.5,0.3125]
[1731975349871,3.13224,3192.6,3192.3,0.3125]
[1731975350078,3.1324,3192.5,3192.3,0.3125]
[1731975350280,3.13243,3192.4,3192.3,0.3125]
[1731975350994,3.13198,3192.9,3192.2,0.3125]
[1731975351278,3.13231,3192.6,3192.4,0.3125]
[1731975351459,3.13208,3192.8,3192.4,0.3125]
[1731975351828,3.13234,3192.5,3192.4,0.3125]
[1731975352261,3.13234,3192.5,3192.1,0.3125]
[1731975352581,3.13243,3192.4,3192.3,0.3125]
[1731975352875,3.758906,3192.4,3192.3,0.3125]
[1731975353473,3.13243,3192.4,3192.3,0.3125]
[1731975354528,3.13279,3192.1,3191.4,3.13338]
[1731975354767,6.26476,3192.5,3191.7,3.13307]
[1731975354935,0.62785101,3192.7,3191.8,1.5577]
[1731975355137,3.13197,3192.9,3191.8,1.5577]
[1731975355336,3.13177,3193.1,3192.3,1.5577]
[1731975355337,3.13183,3193.1,3192.3,1.5577]
[1731975355542,3.13183,3193.1,3192.5,0.3125]
[1731975355770,3.13183,3193.1,3192.4,0.3125]
[1731975355929,3.13197,3192.9,3192.4,0.3125]
[1731975356125,3.13182,3193.1,3192.4,3.44492]
[1731975356375,3.13185,3193.0,3192.4,3.44492]
[1731975356578,3.13185,3193.0,3192.6,0.3125]
[1731975357276,3.13197,3192.9,3192.6,0.3125]
[1731975357459,3.13197,3192.9,3192.4,3.44493]
[1731975357779,1.5063,3193.9,3192.4,3.44493]
[1731975357780,3.13164,3193.3,3192.7,0.3125]
[1731975357935,3.13171,3193.2,3192.7,0.3125]
[1731975358594,3.13164,3193.3,3192.7,0.3125]
[1731975358746,3.13115,3193.8,3193.2,0.3125]
[1731975358934,3.13128,3193.6,3193.2,0.3125]
[1731975359362,3.13138,3193.5,3193.2,0.3125]
[1731975359769,3.13155,3193.3,3193.2,0.3125]
[1731975360080,3.13155,3193.3,3192.6,1.5717]
[1731975360081,3.13195,3192.9,3192.8,0.3125]
[1731975360278,3.13184,3193.1,3192.8,0.3125]
[1731975360883,3.13184,3193.1,3192.6,1.5717]
[1731975360884,3.13184,3193.1,3192.7,0.3125]
[1731975361124,3.13196,3192.9,3192.7,0.3125]
[1731975361389,3.76263003,3193.8,3192.7,0.3125]
[1731975361390,3.13185,3193.0,3192.7,0.3125]
[1731975362051,3.13204,3192.8,3192.7,0.3125]
[1731975362273,3.13204,3192.8,3192.6,1.5717]
[1731975362581,3.13204,3192.8,3192.7,0.3125]
[1731975362774,0.626351,3193.0,3192.7,0.3125]
[1731975362991,3.13126,3193.6,3192.7,0.3125]
[1731975363129,0.06251619,3193.5,3192.9,0.3125]
[1731975363334,3.13185,3193.0,3192.9,0.3125]
[1731975363978,0.06251619,3193.1,3193.0,3.44435]
[1731975364284,1.6052,3194.1,3193.7,0.3125]
[1731975364639,1.6052,3194.1,3193.6,3.13117]
[1731975364640,1.6052,3194.1,3193.9,0.3125]
[1731975364843,4.73598,3194.1,3193.9,0.3125]
[1731975365164,3.13087,3194.0,3193.9,0.3125]
[1731975365361,3.757032,3194.0,3193.9,0.3125]
[1731975365577,3.757032,3194.0,3193.5,0.3125]
[1731975365948,3.13102,3193.9,3193.5,0.3125]
[1731975366278,3.757042,3194.0,3193.5,0.3125]
[1731975366497,3.13107,3193.8,3193.5,0.3125]
[1731975366656,3.13107,3193.8,3193.0,0.3529133]
[1731975366855,0.63106795,3194.0,3193.6,3.13119]
[1731975367197,3.13951,3195.4,3193.6,3.13119]
[1731975367198,3.13006,3194.9,3194.2,0.3125]
[1731975367353,0.313006,3194.8,3194.4,0.3125]
[1731975367549,3.19256619,3194.9,3194.4,0.3125]
[1731975367965,1.5541,3195.2,3194.4,0.3125]
[1731975368136,3.13038,3194.5,3194.4,0.3125]
[1731975368482,3.443418,3194.5,3194.0,0.3125]
[1731975368635,3.13064,3194.3,3194.0,0.3125]
[1731975368832,3.13077,3194.1,3194.0,0.3125]
[1731975369483,3.13077,3194.1,3193.5,1.5775]
[1731975369484,3.13067,3194.2,3194.1,0.3125]
[1731975369874,3.19318619,3194.2,3194.1,0.3125]
[1731975370098,3.92919262,3194.2,3194.1,0.3125]
[1731975370467,0.79852262,3194.2,3193.6,0.3125]